{"text_format":"3","workbook":"xlsx","n_sheets":6,"sheets":["招聘需求汇总","招聘岗位及条件表","2025年招聘岗位及条件表","Sheet1 (2)","Sheet2","按类别分 (2)"],"not_rendered":{"defined_names":8},"read":"whole","date_system":"1900"}

{"sheet":"招聘需求汇总","index":0,"n_rows":28,"n_cols":12,"rows_kept":28,"hidden":true,"merged":[[0,0,0,11]]}
["广西中马钦州产业园区投资控股集团有限公司2025年招聘需求表（汇总表）"]
["序号","岗位类别","用人\n单位","所属集团","岗位\n名称","岗位\n编制数","现有\n人数","需招聘人数（人）","任职条件","开展招聘时间","招聘类型","工作地点"]
[1,"综合保障类","广西中马钦州产业园区投资控股集团有限公司","集团总部","风控合规部\n风控合规岗",2,0,2,"1.学历专业要求：大学本科及以上学历，并获得相应学位证书，法学类、审计学等相关专业；\n2.证书要求：持有法律职业资格A证。\n3.工作经验及能力要求：熟悉民商法、公司法、民事诉讼法、国际法等相关知识；具有良好的表达能力、工作执行力、沟通协调能力，有较强的工作抗压能力，保密意识和原则性强；\n4.任职资历要求：无；\n5.政治面貌要求：无；\n6.年龄要求：年龄30周岁及以下（1995年1月1日以后出生）。","2025年1季度","校招","广西中马钦州产业园区"]
[1,"综合保障类","广西中马投控产业服务集团有限公司","产服集团","财务部\n副经理",1,0,1,"1.学历专业要求：大学本科及以上学历，并获得相应学位证书，财务、会计、经济等相关专业；\n2.证书要求：无；\n3.工作经验及能力要求：具有5年以上机关事业单位、国有企业、大型私营企业财务管理相关工作经验，工作经历：熟悉企业内部财务管理、外部财务对接及专项财务项目管理等工作内容，熟悉各类财务税务管理方法和工作流程；具有良好的表达能力、工作执行力、沟通协调能力，有较强的工作抗压能力，保密意识和原则性强；\n4.任职资历要求：现任职务职级一般应相当企业部门副职(国有企业的以自治区所属二级企业为参考，非国有企业的以同类型同规模企业为参考），或者机关事业单位中的现任副科级干部，或在下一层级岗位工作3年以上；\n5.政治面貌要求：中共党员；\n6.年龄要求：年龄40周岁及以下（1985年1月1日以后出生），特别优秀者可适当放宽年龄条件。","2025年1季度","社招","广西中马钦州产业园区"]
[2,"综合保障类","广西中马投控产业服务集团有限公司","产服集团","财务部\n审计岗",1,0,1,"1.学历专业要求：大学本科及以上学历，并获得相应学位证书，财务、会计、审计等相关专业；\n2.证书要求：无；\n3.工作经验及能力要求：熟悉企业内部审计、外部审计及专项审计等工作内容，熟悉各类审计方法和工作流程；具备扎实的审计知识和法律法规素，具有良好的组织协调能力、沟通能力、文字表达能力、公文写作能力；具有良好的职业道德和业务素养，品行端正，工作细心，责任心强，具备较强的执行力和工作抗压能力，保密性、原则性强。\n4.任职资历要求：无；\n5.政治面貌要求：无；\n6.年龄要求：年龄30周岁及以下（1995年1月1日以后出生）。","2025年1季度","校招","广西中马钦州产业园区"]
[3,"综合保障类","广西中马投控产业服务集团有限公司","产服集团","综合部\n风控合规岗",1,0,1,"1.学历专业要求：大学本科及以上学历，并获得相应学位证书，法学类、审计学等相关专业；\n2.证书要求：持有法律职业资格A证。\n3.工作经验及能力要求：熟悉民商法、公司法、民事诉讼法、国际法等相关知识；具有良好的表达能力、工作执行力、沟通协调能力，有较强的工作抗压能力，保密意识和原则性强；\n4.任职资历要求：无；\n5.政治面貌要求：无；\n6.年龄要求：年龄30周岁及以下（1995年1月1日以后出生）。","2025年1季度","校招","广西中马钦州产业园区"]
[4,"综合保障类","广西中马投控产业服务集团有限公司","产服集团","市场部\n信息化运维岗",2,1,2,"1.学历专业要求：应届毕业生。大学本科及以上学历，并获得相应学位证书，计算机类、电子信息类等相关专业；\n2.证书要求：无；\n3.工作经验及能力要求：系统掌握信息管理系统知识，有ERP系统建设和应用工作实践经验，熟悉网络路由、交换基本配置，熟悉网络安全设备基本操作，熟悉数据中心基本业务。具备良好的组织管理能力、创新能力、沟通协调能力。\n4.任职资历要求：无；\n5.政治面貌要求：无；\n6.年龄要求：无。","2025年1季度","校招","广西中马钦州产业园区"]
[5,"综合保障类","广西中马钦州产业园区华互立德教育投资有限公司","产服集团","教务管理岗",3,0,1,"1.学历专业要求：大学本科及以上学历，并获得相应学位证书，工商管理类、教育学类，市场营销类等相关专业；\n2.证书要求：无；\n3.工作经验及能力要求：具有2年以上国有企业、大中型企业等培训业务策划经验；具备培训专业知识，熟悉企业内部培训和外部培训的工作流程，拥有良好的外部培训需求资源，具备制定计划能力和事件管理能力，能够独立开展培训商机收集、培训业务洽谈、培训协议签署等工作；具备良好的表达能力、工作执行力、沟通协调能力，有较强的工作抗压能力，保密意识和原则性强；\n4.任职资历要求：无；\n5.政治面貌要求：中共党员；\n6.年龄要求：年龄30周岁及以下（1995年1月1日以后出生）","2025年2季度","社招","广西中马钦州产业园区"]
[1,"城市建设开发运营类","广西中马投控建设集团有限公司","建设集团","公司副总经理",3,2,1,"1.学历专业要求：大学本科及以上学历，建筑设计、土木工程及其他相关专业；\n2.证书要求：高级工程师及以上职称，一级注册结构证书或一级建筑师证书或注册岩土工程师；\n3.工作经验及能力要求：熟悉设计院业务和管理，并具有8年以上设计院及工程施工技术管理工作相关工作经验，具有对工程设计方案的审查和优化能力、对施工过程中的技术问题的分析和解决能力，以及对新技术、新工艺的研究和应用能力等，有极强的领导技巧和才能；\n4.任职资历要求：无；\n5.政治面貌要求：中共党员；\n6.年龄要求：年龄40周岁及以下（1985年1月1日以后出生）。","2025年1季度","社招","广西中马钦州产业园区"]
[2,"城市建设开发运营类","广西中马投控建设集团有限公司","建设集团","工程管理中心施工管理人员（化工类）",21,13,1,"1.学历专业要求：大学本科及以上学历，并获得相应学位证书，化工、工民建等相关专业；\n2.证书要求：工程系列中级职称，具有一级建造师证、施工员证、安全员C证、八大员证优先；\n3.工作经验及能力要求：有施工单位工作经验，5年以上项目现场管理经验，熟悉化工建设项目组织实施流程，有2年以上电子化学品项目建设经验优先；具备项目管理、工程管理、安全生产的法律法规、化工项目施工作业指导等相关知识，能独立编制施工组织设计；\n4.任职资历要求：无；\n5.政治面貌要求：无；\n6.年龄要求：年龄40周岁及以下（1985年1月1日以后出生）。","2025年1季度","社招","广西中马钦州产业园区"]
[3,"城市建设开发运营类","广西中马投控建设集团有限公司","建设集团","工程管理中心施工技术人员",21,13,1,"1.学历专业要求：大学本科及以上学历，建筑、市政、通信、机电等专业；\n2.证书要求：无；\n3.能力要求：具有良好的表达能力、工作执行力、沟通协调能力，有较强的工作抗压能力；\n4.任职资历要求：无；\n5.政治面貌要求：无；\n6.年龄要求：年龄30周岁及以下（1995年1月1日以后出生）。","2025年1季度","校招","广西中马钦州产业园区"]
[1,"综合保障类","广西中马投控国际经贸集团有限公司","国贸集团","党群人力部\n党群岗",1,0,1,"1.学历专业要求：大学本科及以上学历，并获得相应学位证书，政治学类、新闻传播学类、公共管理类等专业优先。\n2.证书要求：无\n3.工作经验及能力要求：具有较强的政治敏感性和政治判断力，对党的理论和路线方针政策有深入理解，熟悉党务工作，具备开展党建材料撰写能力，具有良好的沟通协调能力和组织能力，较强的责任心和团队合作精神。\n4.任职资历要求：无\n5.政治面貌要求：中共党员。\n6.年龄要求：年龄30周岁及以下（1995年1月1日以后出生）。","2025年1季度","校招","广西中马钦州产业园区"]
[2,"商贸物流类","广西中马投控国际经贸集团有限公司","国贸集团","冷链管理部\n经理",1,0,1,"1.学历专业要求：大学本科及以上学历，并获得相应学位证书，经济与贸易类、工商管理类、物流管理与工程类专业。\n2.证书要求：无\n3.工作经验及能力要求：具有5年及以上供应链业务、冷链管理、仓储物流等相关工作经历；熟悉自主贸易业务、存货质押、供应链业务等业务运作和风险控制，熟知国内外冷链物流市场发展动态、趋势、营运管理。具有良好的业务沟通能力，较强的冷库招商招租和业务拓展及客户关系维护的能力；思维缜密、洞察力强，高度的责任心与敬业精神，具有良好的协调能力。\n4.任职资历要求：现任职务职级一般应相当企业部门正职(国有企业的以自治区所属二级企业为参考，非国有企业的以同类型同规模企业为参考）或机关事业单位中的现任正科级干部，或者在企业部门副职（副科级）岗位工作2年以上（未满2年的，一般应当在部门副职（副科级）岗位及下一层级正职岗位工作累计5年以上，且须担任部门副职（副科级）岗位满1年）。\n5.政治面貌要求：中共党员优先。\n6.年龄要求：年龄35周岁及以下（1990年1月1日以后出生）。","2025年1季度","社招","广西中马钦州产业园区"]
[3,"商贸物流及供应链服务类","中马双园（上海）能源科技有限公司","国贸集团","业务部\n业务岗",4,0,1,"1.学历专业要求：大学本科及以上学历，并获得相应学位证书。\n2.证书要求：无\n3.工作经验及能力要求：具有较强的组织管理能力、沟通协调能力、公关能力、创新能力；具有良好的职业道德和业务素养，工作细心，责任心强，服务意识强。\n4.任职资历要求：无\n5.政治面貌要求：无\n6.年龄要求：年龄35周岁及以下（1990年1月1日以后出生）。","2025年1季度","社招","上海市"]
[4,"商贸物流及供应链服务类","广西自贸区中马供应链管理有限公司","国贸集团","业务部\n业务岗",15,7,3,"1.学历专业要求：大学本科及以上学历，并获得相应学位证书，经济与贸易类、经济学类、金融学类、管理类、外语类专业。\n2.证书要求：无\n3.工作经验及能力要求：具有较强的组织协调能力、沟通能力和文字表达能力；具有良好的职业道德和业务素养，品行端正，工作细心，责任心强，具有优秀的沟通和人际交往能力，具备较强的执行力和工作抗压能力。社招要求具有贸易业务工作经验，熟悉外贸业务、加工贸易等工作。\n4.任职资历要求：无\n5.政治面貌要求：无\n6.年龄要求：年龄35周岁及以下（1990年1月1日以后出生）。","2025年1季度招聘2人；2025年3季度招聘1人。","2025年1季度社招2人；2025年3季度校招1人。","广西中马钦州产业园区"]
[5,"综合保障类","广西中马投控国际经贸集团有限公司","国贸集团","财务部\n会计岗",2,0,1,"1.学历专业要求：大学本科及以上学历，并获得相应学位证书，会计学、财务管理等财会类、经济类等相关专业。\n2.证书要求：无\n3.工作经验及能力要求：熟悉企业会计准则及相关的法律、政策；熟悉会计、税务、管理等方面知识及银行支付业务；熟练使用财务工具和办公软件。具有良好的学习能力、独立工作能力和财务分析能力，工作认真负责，有良好的职业操守。\n4.任职资历要求：无\n5.政治面貌要求：中共党员优先。\n6.年龄要求：年龄30周岁及以下（1995年1月1日以后出生）。","2025年2季度","校招","广西中马钦州产业园区"]
[1,"业务类","广西中马投控资本管理集团有限公司","资本集团","经营业务岗",1,0,1,"1.大学本科及以上学历，并获得相应学位证书，财经、法律、金融、资产评估等专业\n2.具有初级会计证书或证券从业资格证等有关证书\n3.具有融资租赁以及保理等金融服务行业2年以上工作经验，市场拓展能力较强，善于沟通，具有较强的统筹协调能力，具有债券投资、交易经验者优先。\n4.任职资历：无  \n5.政治面貌要求：无\n6.年龄要求：年龄30周岁及以下（1995年1月1日以后出生）","2025年1季度","社招","广西中马钦州产业园区"]
[2,"综合保障类","广西中马投控资本管理集团有限公司","资本集团","\n风控合规岗",1,0,1,"1.学历专业要求：大学本科及以上学历，并获得相应学位证书，法学类、审计学等相关专业；\n2.证书要求：持有法律职业资格A证。\n3.工作经验及能力要求：熟悉民商法、公司法、民事诉讼法、国际法等相关知识；具有良好的表达能力、工作执行力、沟通协调能力，有较强的工作抗压能力，保密意识和原则性强；\n4.任职资历要求：无；\n5.政治面貌要求：无；\n6.年龄要求：年龄30周岁及以下（1995年1月1日以后出生）。","2025年1季度","校招","广西中马钦州产业园区"]
[1,"向海产业投资发展类","广西中马投控产业投资集团有限公司","产投集团","投资部\n经理/副经理",1,0,1,"1.学历专业要求：大学本科及以上学历，并获得相应学位证书，专业不限，经济学、金融学、会计学等相关专业优先；\n2.证书要求：取得中级及以上职称优先；\n3.工作经验及能力要求：具有3年及以上企业投资管理经验，熟悉化工、生物医药、食品工业、新材料等行业投资优先，有较强的公文写作能力，具备敏锐的商业嗅觉和优秀的市场洞察力，有良好的沟通协调能力、执行力和较强的工作抗压能力和风险防控意识；\n4.任职资历要求：应聘经理岗位的现任职务职级一般应相当企业部门正职(国有企业的以省级、自治区级所属二级企业为参考，非国有企业的以同类型同规模企业为参考）或党政机关、企事业单位中的现任正科级干部，或者在企业部门副职（副科级）岗位工作2年以上（未满2年的，一般应当在部门副职（副科级）岗位及下一层级岗位工作累计5年以上，且须担任部门副职（副科级）岗位满1年）；\n应聘副经理岗位的现任职务职级一般应相当企业部门副职(国有企业的以省级、自治区级所属二级企业为参考，非国有企业的以同类型同规模企业为参考）或党政机关、企事业单位中的现任副科级干部，或者在相关岗位工作3年以上；\n5.政治面貌要求：中共党员优先；\n6.年龄要求：年龄35周岁及以下（1990年1月1日以后出生），特别优秀的可适当放宽。","2025年1季度","社招","广西中马钦州产业园区"]
[2,"综合保障类","广西中马投控产业投资集团有限公司","产投集团","风控合规部\n经理/副经理",1,0,1,"1.学历专业要求：大学本科及以上学历，并获得相应学位证书；专业不限，法律类、经济类、财务类、审计类等专业优先，\n2.证书要求：持有法律职业资格证书（A类）优先；\n3.工作经验及能力要求：具有3年及以上相关工作经验，熟悉公司法、民法典、劳动合同法、国有资产管理、国际贸易法律实务等相关法律法规，有大中型国有企业或同等规模的民营企业法务、风控管理等相关工作经验；具备团队合作精神，工作抗压能力强；\n4.任职资历要求：应聘经理岗位的现任职务职级一般应相当企业部门正职(国有企业的以省级、自治区级所属二级企业为参考，非国有企业的以同类型同规模企业为参考）或党政机关、企事业单位中的现任正科级干部，或者在企业部门副职（副科级）岗位工作2年以上（未满2年的，一般应当在部门副职（副科级）岗位及下一层级岗位工作累计5年以上，且须担任部门副职（副科级）岗位满1年）；\n应聘副经理岗位的现任职务职级一般应相当企业部门副职(国有企业的以国有企业的以省级、自治区级所属二级企业为参考，非国有企业的以同类型同规模企业为参考）或机关事业单位中的现任副科级干部，或者在相关岗位工作3年以上；\n5.政治面貌要求：中共党员优先；\n6.年龄要求：年龄35周岁及以下（1990年1月1日以后出生），特别优秀的可适当放宽。","2025年1季度","社招","广西中马钦州产业园区"]
[3,"向海产业投资发展类","广西中马投控产业投资集团有限公司","产投集团",null,"新增项目",null,1,"1.学历专业要求：大学本科及以上学历，并获得相应学位证书，化学工程与工艺等相关专业；\n2.职称证书要求：无；\n3.知识与能力要求：掌握无机化学、分析化学、有机化学、物理化学以及化工原理的基础知识、基本理论和基本实验技能；具有精细化学品研制和开发、化工设计和工艺改进的能力；\n4.政治面貌要求：无。\n5.年龄要求：年龄30周岁及以下（1995年1月1日以后出生）。","2025年1季度","校招","广西中马钦州产业园区"]
[4,"向海产业投资发展类","广西中马投控产业投资集团有限公司","产投集团",null,"新增项目",null,1,"1.学历专业要求：大学本科及以上学历，并获得相应学位证书，材料科学与工程、金属材料工程等相关专业；\n2.职称证书要求：无；\n3.知识与能力要求：掌握金属材料、无机非金属材料、高分子材料、防腐专业以及其它高新技术材料科学的基础理论和材料合成与制备、材料复合、材料设计等专业基础知识，掌握材料加工的基本知识，具有正确选择设备进行材料研究、材料设计、材料研制的初步能力；\n4.政治面貌要求：无。                                                                                  5.年龄要求：年龄30周岁及以下（1995年1月1日以后出生）。","2025年1季度","校招","广西中马钦州产业园区"]
[5,"向海产业投资发展类","广西中马投控产业投资集团有限公司","产投集团",null,"新增项目",null,1,"1.学历专业要求：大学本科及以上学历，并获得相应学位证书，生物医药类相关专业；\n2.职称证书要求：无；\n3.知识与能力要求：掌握化学制药、生物制药、药物制剂技术与工程的基本理论和基本知识；具有对药品的新资源、新产品、新工艺进行研究、开发和设计的初步能力；\n4.政治面貌要求：无。\n5.年龄要求：年龄30周岁及以下（1995年1月1日以后出生）。","2025年1季度","校招","广西中马钦州产业园区"]
[6,"向海产业投资发展类","广西中马金谷燕生物科技有限责任公司","产投集团","市场营销部\n经理/副经理",1,0,1,"1.学历专业要求：大学本科及以上学历，并获得相应学位证书，食品工程、食品科学与工程、市场营销、电子商务等相关专业；\n2.证书要求：无要求；\n3.工作经验及能力要求：具有3年以上食品市场营销管理经验；具有燕窝营销推广经验者优先；熟悉国家广告宣传、食品营销等法律法规；具备市场调研、市场分析、产品定位、品牌推广、渠道管理、销售管理的能力；能独立撰写营销策划方案、营销宣传推广方案；能熟练运用电脑办公、网络直播等软件；具有良好的表达能力、工作执行力、沟通协调能力，有较强的工作抗压能力；\n4.任职资历要求：无\n5.政治面貌要求：无\n6.年龄要求：年龄35周岁及以下（1990年1月1日以后出生），特别优秀的可适当放宽。","2025年1季度","社招","广西中马钦州产业园区"]
[7,"向海产业投资发展类","广西自贸区产投海洋生物科技有限公司","产投集团","生产技术岗","未定编",0,1,"1.学历专业要求：大专及以上学历，并获得相应证书，水产养殖学、水产养殖技术等相关专业；\n2.证书要求：无要求；\n3.工作经验及能力要求：从事过水产养殖相关人员优先；掌握一定的渔群健康养殖技术；具有良好的表达能力、工作执行力、沟通协调能力；能接受驻场。\n4.任职资历要求：无\n5.政治面貌要求：无；\n6.年龄要求：年龄30周岁及以下（1995年1月1日以后出生），特别优秀的可适当放宽。","2025年1季度","社招","广西中马钦州产业园区"]
[1,"城市建设开发运营类","广西中马投控商务服务有限公司","商务公司","产业合作部\n业务副总监",3,0,1,"1.学历专业要求：全日制大学本科及以上学历；\n2.证书要求：无；\n3.工作经验及能力要求：有较强的行业研究能力、分析与判断能力；掌握招商招租管理、市场营销策划等相关知识和工作流程；                                                                   \n4.任职资历要求：现任职务职级一般应相当企业部门正职，或在下一层级岗位工作3年以上；具有5年及以上产业招商、营销、园区管理专业工作经历；负责过本单位产业招商营销工作，或主持过企业产业项目招商营销活动；\n5.政治面貌：中共党员优先；                                                              6.年龄要求：年龄40周岁及以下（1984年11月29日以后出生）；"]
[2,"城市建设开发运营类","广西中马投控商务服务有限公司","商务公司","产业合作部\n产业招商经理",5,0,1,"1.学历专业要求：大学本科及以上学历，并获得相应学位证书，市场营销、策划类、设计类相关专业；\n2.证书要求：无；\n3.工作经验及能力要求：有较强的营销策划能力、沟通表达能力；掌握招商招租管理、市场营销策划等相关知识和工作流程；具备以上条件者优先。\n4.任职资历要求：无；                                  \n5.政治面貌：中共党员优先；                                                              \n6.年龄要求：年龄30周岁及以下（1995年1月1日以后出生）；","2025年1季度","校招","广西中马钦州产业园区"]
[3,"综合保障类","广西中马投控商务服务有限公司","招商公司","\n风控合规岗",1,0,1,"1.学历专业要求：大学本科及以上学历，并获得相应学位证书，法学类、审计学等相关专业；\n2.证书要求：持有法律职业资格A证。\n3.工作经验及能力要求：熟悉民商法、公司法、民事诉讼法、国际法等相关知识；具有良好的表达能力、工作执行力、沟通协调能力，有较强的工作抗压能力，保密意识和原则性强；\n4.任职资历要求：无；\n5.政治面貌要求：无；\n6.年龄要求：年龄30周岁及以下（1995年1月1日以后出生）","2025年1季度","校招","广西中马钦州产业园区"]

{"sheet":"招聘岗位及条件表","index":1,"n_rows":35,"n_cols":8,"rows_kept":35,"merged":[[0,0,0,7],[34,0,34,2]]}
["广西中马钦州产业园区投资控股集团有限公司2025年招聘岗位及条件表"]
["序号","用人\n单位","岗位\n名称","需招聘人数（人）","岗位主要职责","任职条件","招聘类型","工作地点"]
[{"$f":"ROW()-2","v":1},"广西中马钦州产业园区投资控股集团有限公司","集团公司数字化与人工智能办公室副主任（集团公司中层副职）",1,"1.负责组织制定集团公司数字化与人工智能工作规划、计划和有关管理制度。\n2.负责组织和指导子公司开展数字化与人工智能各项工作。\n3.负责统筹各项运营数据管理。\n4.组织挖掘业务场景需求，推动数字化与人工智能技术落地应用。\n5.完成公司交办的其他工作。","1.大学本科及以上学历，并获得相应学位证书，计算机科学与技术、数据科学、人工智能等相关专业。\n2.具有8年以上数智化与人工智能工作经历，熟练掌握至少一种编程语言，如Python、C++或Java，并具备良好的编程习惯和代码阅读能力，具有扎实的算法基础，熟悉常用的数据结构和算法，能够优化模型性能并解决实际问题。\n3.现任职务职级一般应相当于机关事业单位中的现任副处级干部或相当于省级直属企业(非国有企业的以同类型同规模企业为参考)中层副职干部；或在下一层级正职(正科级)岗位工作3年以上,未满3年的一般应当在下一层级正职(正科级)岗位和副职(副科级)岗位工作累计5年以上且须担任部门副职岗位满1年。\n4.有较强的责任心、学习能力和协调能力。\n5.40周岁及以下（计算时间截至公告发布日）。  ","社会招聘","广西中马钦州产业园区"]
[2,"广西中马钦州产业园区投资控股集团有限公司","集团公司资金管理中心副主任（集团公司中层副职）",1,"1.负责具体组织拟定并实施集团公司年度、季度和月度资金计划，定期对执行情况进行分析和报告。\n2.负责具体组织拟定和推进落实集团公司筹融资管理工作计划，及时报告执行情况和提出建议。\n3.负责组织对资金计算情况进行监督和检查。\n4.负责做好外部关系协调。\n5.落实集团公司安排的其他工作。","1.大学本科及以上学历，并获得相应学位证书，会计学、财务管理或金融学类专业。\n2.具有5年以上金融机构公司业务管理或企业投融资等工作经验。\n3.在较大规模企业担任过资金管理负责人（分管财务副总经理、财务总监、财务部门负责人）,现任职务职级一般应相当于机关事业单位中的现任副处级干部或相当于省级直属企业(非国有企业的以同类型同规模企业为参考)中层副职干部；或在下一层级正职(正科级)岗位工作3年以上,未满3年的一般应当在下一层级正职(正科级)岗位和副职(副科级)岗位工作累计5年以上。\n4.有较强的责任心、学习能力和协调能力。\n5.中级会计师及以上职称，或者为注册会计师。\n6.40周岁及以下（计算时间截至公告发布日）。 ","社会招聘","广西中马钦州产业园区"]
[3,"广西中马钦州产业园区投资控股集团有限公司","集团公司数字化与人工智能岗",1,"1.负责具体组织数字化与人工智能项目的申报、变更、评审、监督及验收评估等工作；协同推进数智化产城综合服务平台等项目建设，动态跟踪重点项目的进度、质量和风险。\n2.协助部门负责人挖掘业务场景需求，推动数字化与人工智能技术落地应用。\n3.协助部门负责人组织建立数据资产目录，完善数据采集、存储、共享及开放机制；监控数据质量，推动业务与数字技术融合的流程优化。\n4.完成公司交办的其他工作任务。","1.大学本科及以上学历，并获得相应学位证书，计算机科学与技术、数据科学、人工智能等相关专业。\n2.有较强的责任心、学习能力。\n3.2024/2025年毕业生。","校园招聘","广西中马钦州产业园区"]
[4,"广西中马钦州产业园区投资控股集团有限公司子公司","子公司投资部经理/副经理",1,"1.负责推进落实公司投资计划，并提出工作建议。\n2.负责具体组织实施项目投资各项工作，并做好风险管理。\n3.负责组织开展市场和行业调研，拓展和储备投资项目。\n4.负责拟定和组织实施公司投资业务管理制度。\n5.完成公司交办的其它工作。","1.大学本科及以上学历，并获得相应学位证书。\n2.具有5年及以上企业投资管理经验。\n3.应聘经理岗位的现任职务职级一般应相当省级直属企业所属子企业部门正职(非国有企业的以同类型同规模企业为参考）或机关事业单位中的现任正科级干部，或者在企业部门副职（副科级）岗位工作2年以上（未满2年的，一般应当在部门副职层级岗位及下一层级正职岗位工作累计5年以上，且须担任部门副职岗位满1年）；应聘副经理岗位的现任职务职级一般应相当省级直属企业所属子企业部门副职(非国有企业的以同类型同规模企业为参考）或党政机关、事业单位中的现任副科级干部，或者在相关岗位工作5年以上。\n4.有较强的责任心、学习能力和协调能力。\n5.35周岁及以下（计算时间截至公告发布日）。\n6.有投行工作经验或有化工、生物医药、食品工业、新材料等行业投资工作经验优先。","社会招聘","广西中马钦州产业园区"]
[5,"广西中马钦州产业园区投资控股集团有限公司子公司","子公司投资部\n投资策划岗",1,"1.按要求做好投资方分析及研究。\n2.对新项目进行背景调查，编制立项建议书及项目投资分析报告，参与商务谈判相关工作。\n3.负责投资项目运营前的其他推进工作。\n4.完成公司交办的其他工作。","1.大学本科及以上学历，并获得相应学位证书，经济学、金融学、财务等相关专业。\n2.有2年及以上投资策划经验。\n3.有较强的责任心、学习能力和协调能力。\n4.年龄30周岁及以下（计算时间截至公告发布日）。\n5.有化工、食品工业、生物医药行业或投行工作经验优先。","社会招聘","广西中马钦州产业园区"]
[6,"广西中马钦州产业园区投资控股集团有限公司子公司","子公司经营业务岗（化工方向）",1,"1.协助开展化工行业调研和政策分析。\n2.协助推进落实化工类项目分析和运营管理工作。\n3.协助推进投资项目运营前有关工作。\n4.完成公司交办的其他工作。","1.大学本科及以上学历，并获得相应学位证书，化学、化学工程与工艺、精细化工等相关专业。\n2.有较强的责任心、学习能力和适应能力。\n3.2024/2025年毕业生。","校园招聘","广西中马钦州产业园区"]
[7,"广西中马钦州产业园区投资控股集团有限公司子公司","子公司经营业务岗（自动化方向）",1,"1.负责推进落实公司自动化项目相关工作。\n2.负责拟定自动化有关专项方案并推进实施。\n3.完成公司交办的其他工作。","1.大学本科及以上学历，并获得相应学位证书，自动化相关专业。\n2.有2年及以上自动化领域相关工作经验。\n3.有较强的责任心、学习能力和适应能力。\n4.35周岁及以下（计算时间截至公告发布日）。","社会招聘","广西中马钦州产业园区"]
[8,"广西中马钦州产业园区投资控股集团有限公司子公司","子公司科创部经理/副经理",1,"1.负责具体组织实施科技孵化类项目管理工作。\n2.参与技术引进与评估相关工作。\n3.负责落实中试基地建设和运营管理等有关工作安排。\n4.负责组织落实科技孵化类项目产权管理相关工作。\n5.完成公司交办的其他工作。","1.大学本科及以上学历，并获得相应学位证书，理工类相关专业毕业，食品科学与工程类、化工与制药类、生物工程类优先。\n2.具有3年以上企业科技创新相关工作经验。\n3.应聘经理岗位的现任职务职级一般应相当省级直属企业所属子企业部门正职(非国有企业的以同类型同规模企业为参考）或机关事业单位中的现任正科级干部，或者在企业部门副职（副科级）岗位工作2年以上（未满2年的，一般应当在部门副职层级岗位及下一层级正职岗位工作累计5年以上，且须担任部门副职岗位满1年）；应聘副经理岗位的现任职务职级一般应相当省级直属企业所属子企业部门副职(非国有企业的以同类型同规模企业为参考）或党政机关、事业单位中的现任副科级干部，或者在相关岗位工作5年以上。\n4.有较强的责任心、学习能力和协调能力。\n5.年龄40周岁及以下（计算时间截至公告发布日）。\n6.中级及以上职称，有科技成果转化项目主导或投行经验优先。\n","社会招聘","广西中马钦州产业园区"]
[9,"广西中马钦州产业园区投资控股集团有限公司子公司","子公司运营管理岗",1,"1.负责具体开展海外市场调研及政策研究。\n2.负责具体拓展海外业务和推进落实海外招商引资工作。\n3.完成公司交办的其它工作。","1.大学本科及以上学历，并获得相应学位证书，经济与贸易类、金融学类专业。\n2.具有2年及以上国际经贸相关工作或者海外工作经验。\n3.通过CET-6/TEM-8考试，或雅思考试6分、托福考试80分及以上分数。\n4.有较强的责任心、学习能力和适应能力。\n5.30周岁及以下（计算时间截至公告发布日）。 \n","社会招聘","马来西亚"]
[10,"广西中马钦州产业园区投资控股集团有限公司子公司","子公司投行经理/副经理",1,"1.负责组织开展行业跟踪和研究，制定项目投资计划。\n2.负责组织拓展、储备投资项目。\n3.负责组织制定实施项目投资方案，并开展项目投后管理。\n4.组织制定实施业务管理制度。\n5.负责维护和拓展合作机构伙伴。\n6..完成公司交办的其他工作。","1.大学本科及以上学历，并获得相应学位证书，经济学、金融学、工商管理专业。\n2.具有5年及以上投行工作经验。\n3.应聘经理岗位的现任职务职级一般应相当省级直属企业所属子企业部门正职(非国有企业的以同类型同规模企业为参考）或机关事业单位中的现任正科级干部，或者在企业部门副职（副科级）岗位工作2年以上（未满2年的，一般应当在部门副职层级岗位及下一层级正职岗位工作累计5年以上，且须担任部门副职岗位满1年）；应聘副经理岗位的现任职务职级一般应相当省级直属企业所属子企业部门副职(非国有企业的以同类型同规模企业为参考）或党政机关、事业单位中的现任副科级干部，或者在相关岗位工作3年以上。\n4.有较强的责任心、学习能力和协调能力。\n5.40周岁及以下（计算时间截至公告发布日）。\n6.具有基金从业资格证书或主持过项目投资优先。 ","社会招聘","广西中马钦州产业园区"]
[11,"广西中马钦州产业园区投资控股集团有限公司子公司","子公司投资管理岗",1,"1.负责具体开展项目投资管理相关工作。\n2.负责协助完善投资管理相关工作制度、流程。\n3.3.协助已投企业规范性经营，监控被投企业的财务和运营风险，及时发现潜在问题并制定应对方案。\n4.完成公司交办的其他工作。","1.大学本科及以上学历，并获得相应学位证书，金融学类、经济学类等相关专业。\n2.具有3年及以上项目投资管理工作经验。\n3.有较强的责任心、学习能力和协调能力。\n4.年龄35周岁及以下（计算时间截至公告发布日）。\n5.具有投行工作经验优先。","社会招聘","广西中马钦州产业园区"]
[12,"广西中马钦州产业园区投资控股集团有限公司子公司","子公司供应链金融主管",1,"1.负责具体设计供应链金融产品方案，有效响应客户需求。\n2.负责参与和落实供应链业务全周期管理，开展贸易背景真实性核查、资金流闭环监控及信用风险评估。\n3.定期开展有关经营数据分析，提供业务经营建议。\n4.完成公司交办的其他工作。","1.大学本科及以上学历，并获得相应学位证书，会计学、财务管理、供应链管理和金融学类相关专业。\n2.具有3年以上供应链金融工作经验；\n3.有较强的责任心、学习能力和适应能力。\n4.年龄35周岁及以下（计算时间截至公告发布日）。\n","社会招聘","广西中马钦州产业园区"]
[13,"广西中马钦州产业园区投资控股集团有限公司子公司","子公司供应链金融岗",1,"1.协助设计供应链金融产品方案，有效响应客户需求。\n2.协助落实供应链业务全周期管理，协助开展贸易背景真实性核查、资金流闭环监控及信用风险评估。\n3.协助定期开展有关经营数据分析。\n4.完成公司交办的其他工作。","1.大学本科及以上学历，并获得相应学位证书，会计学、财务管理、供应链管理和金融学类相关专业\n2.有较强的责任心、学习能力和适应能力。\n3.2024/2025年毕业生。","校园招聘","广西中马钦州产业园区"]
[{"$f":"ROW()-2","v":14},"广西中马钦州产业园区投资控股集团有限公司子公司","子公司产业合作部业务副总监",1,"1.协助业务总监负责部门的日常管理工作，开展产业投资、招商活动的策划、组织、实施和管理，监督、指导业务经理开展产业投资及招商工作。                                                                                           2.协助负责招商项目的挖掘、洽谈、分类和推动落地，通过外部以商招商、市场化招商、产业链招商等模式对招商信息筛选、洽谈推动落地。                                                                                         3.负责对接外部商协会和入园企业产业链收集相关招商资讯和资源，组织和策划目标明确、专业度高、精准高效的开展招商推介。                                                                                              4.负责对接各级政府招商部门，参加和组织项目配合相关专场招商活动。\n5.完成公司交办的其他工作。","1.大学本科及以上学历，并获得相应学位证书，食品科学与工程类、化工与制药类、材料类、生物医药数据科学专业优先。                                                                                     \n2.具有5年及以上招商、营销或园区管理工作经历，负责过本单位招商营销工作，或主持过企业项目招商或营销活动，掌握招商、招租管理或市场营销策划等相关知识和工作流程。\n3.现任职务职级一般应相当省级直属企业所属子企业部门副职(非国有企业的以同类型同规模企业为参考）或机关事业单位中的现任副科级干部，或者在下一层级相关岗位工作5年以上。 \n4.有较强的责任心、学习能力和协调能力。                                                                       5.40周岁及以下（计算时间截至公告发布日）。   ","社会招聘","广西中马钦州产业园区"]
[{"$f":"ROW()-2","v":15},"广西中马钦州产业园区投资控股集团有限公司子公司","子公司产业合作部产业招商经理",1,"1.负责为客户提供招商服务，做好客户关系维护。                                                                              2.负责落实招商签约具体工作。\n3.协助组织开展招商活动，参与商务谈判和内外招商，协同保障招商项目落地。                                \n4.负责招商市场调研工作及招商推广的组织实施，协助部门组织和策划招商推介活动，对接各级政府招商部门，积极参加配合相关专场招商活动。\n5.完成公司交办的其他工作。","1.大学本科及以上学历，并获得相应学位证书，市场营销、设计学类相关专业。\n2.有较强的责任心、学习能力。\n3.2024/2025年毕业生。","校园招聘","广西中马钦州产业园区"]
[{"$f":"ROW()-2","v":16},"广西中马钦州产业园区投资控股集团有限公司子公司","子公司策划保障部产业和政策研究岗",1,"1.协助做好项目落地要素分析，做好落地服务协调、保障工作和协助拓展新项目。                                                                                                 2.协助收集、整理和分析各级、各地产业和招商政策。                                                                                                  3.协助制定招商合作活动策划方案。\n4.完成公司交办的其他工作。","1.大学本科及以上学历，并获得相应学位证书，市场营销、设计类相关专业。\n2.有较强的责任心、学习能力。\n3.2024/2025年毕业生。","校园招聘","广西中马钦州产业园区"]
[{"$f":"ROW()-2","v":17},"广西中马钦州产业园区投资控股集团有限公司子公司","子公司市场部\n项目管理岗",1,"1.协助开展市场调研和分析工作。\n2.参与制定和具体实施项目开发策划方案、项目投资方案等。\n3.按照要求跟进项目进展情况。\n4.完成公司交办的其他工作。","1.大学本科及以上学历，并获得相应学位证书，经济学、市场营销等相关专业。\n2.有较强的责任心、学习能力和适应能力。\n3.2024/2025年毕业生。","校园招聘","广西中马钦州产业园区"]
[{"$f":"ROW()-2","v":18},"广西中马钦州产业园区投资控股集团有限公司子公司","子公司冷链管理部经理",1,"1.负责组织落实公司冷链业务发展规划、计划。\n2.负责组织拓展冷链业务，完成公司下达的冷库招商招租和运营管理经营计划。\n3.拟定和组织实施冷链业务管理制度。\n4.完成公司交办的其它工作。","1.大学本科及以上学历，并获得相应学位证书，经济与贸易类、工商管理类、物流管理与工程类等相关专业。\n2.具有5年及以上供应链业务、冷链管理、仓储物流等相关工作经历，熟知国内外冷链物流市场发展动态、趋势、营运管理。\n3.现任职务职级一般应相当省级直属企业所属子企业部门正职(非国有企业的以同类型同规模企业为参考）或机关事业单位中的现任正科级干部，或者在企业部门副职（副科级）岗位工作2年以上（未满2年的，一般应当在部门副职层级岗位及下一层级岗位工作累计5年以上，且须担任部门副职岗位满1年）。\n4.有较强的责任心、学习能力和协调能力。\n5.35周岁及以下（计算时间截至公告发布日）。  ","社会招聘","广西中马钦州产业园区"]
[{"$f":"ROW()-2","v":19},"广西中马钦州产业园区投资控股集团有限公司子公司","子公司贸易主管",1,"1.完成部门布置任务目标，做好合同签订、履约以及货款的结算、回笼等工作。\n2.负责客户的开拓、管理和维护，完成市场开发各项工作任务。\n3.完成公司交办的其它工作。","1.大学本科及以上学历，并获得相应学位证书，经济与贸易类、金融学类专业。\n2.具有2年以上贸易工作经验（需从事过国际贸易），能独立开展国际贸易相关业务。\n3.通过CET-6/TEM-8考试，或雅思考试6分、托福考试80分及以上分数。\n4.有较强的责任心、学习能力和适应能力。\n5.30周岁及以下（计算时间截至公告发布日）。  ","社会招聘","广西中马钦州产业园区"]
[{"$f":"ROW()-2","v":20},"广西中马钦州产业园区投资控股集团有限公司子公司","子公司贸易岗",1,"1.完成部门布置的月、季、年度市场任务目标，做好合同签订、履约以及货款的结算、回笼等工作。\n2.负责客户开拓、管理和维护，完成市场开发各项工作任务。\n3.完成公司交办的其它工作。","1.大学本科及以上学历，并获得相应学位证书，经济与贸易类、金融学类。\n2.通过CET-6/TEM-8考试，或雅思考试6分、托福考试80分及以上分数。\n3.有较强的责任心、学习能力和适应能力。\n4.2024/2025年毕业生。\n","校园招聘","广西中马钦州产业园区"]
[21,"广西中马钦州产业园区投资控股集团有限公司子公司","子公司工程管理中心项目经理（化工类项目建设方向）",1,"1.负责组织实施公司安排的工程建设项目的管理，及时对项目的经营管理提出建议。\n2.负责相应工程建设项目施工现场的技术指导。 \n3.负责协调项目部相关各方工作。\n4.负责监督检查相应工程建设项目施工进度、质量达标以及成本控制情况。\n5.完成公司交办的其它工作。","1.大学本科及以上学历，并获得相应学位证书，化学工程、工业与民用建筑等相关专业。\n2.具有5年以上工程建设施工单位项目管理工作经验（其中有2年以上化工项目现场管理经验），熟悉工程建设项目组织实施流程，能独立编制施工组织设计。\n3.有较强的责任心、学习能力和协调能力。\n4.具有工程系列中级及以上职称。\n5.年龄40周岁及以下（计算时间截至公告发布日）。\n","社会招聘","广西中马钦州产业园区"]
[22,"广西中马钦州产业园区投资控股集团有限公司子公司","子公司工程管理中心工程师（智能化方向）",1,"1.负责具体组织推进落实公司工程建设智能化发展的相关工作部署。\n2.负责具体统筹组织实施公司有关智能化工程建设项目。\n3.负责组织落实公司机电设备工程有关管理工作。\n4.完成公司交办的其他工作。\n","1.大学本科及以上学历，并获得相应学位证书，机械类、电气类、自动化类专业或建筑电气与智能化、通信工程等相关专业。\n2.具有5年以上工程建设施工单位数字化与智能化相关工作经验或机电设备工程管理经验。\n3.有较强的责任心、学习能力和协调能力。\n4.具有工程系列中级及以上职称。\n5.年龄35周岁及以下（计算时间截至公告发布日）。 ","社会招聘","广西中马钦州产业园区"]
[23,"广西中马钦州产业园区投资控股集团有限公司子公司","子公司工程管理中心施工技术员",1,"1.协助编制和组织实施项目施工计划，落实项目施工具体工作。\n2.协助对项目施工质量、进度、安全等进行管理、检查和督促。\n3.协助做好项目各类申报管理工作。 \n4.完成公司交办的其它工作。","1.大学本科及以上学历，并获得相应学位证书，化学工程、工业与民用建筑等相关专业。\n2.具有2年以上工程建设施工单位施工经验，能较为独立地组织开展建设工程施工工作。\n3.有较强的责任心、学习能力和协调能力。\n4.年龄40周岁及以下（计算时间截至公告发布日）。\n5.具有化工项目施工经验者优先。","社会招聘","广西中马钦州产业园区"]
[24,"广西中马钦州产业园区投资控股集团有限公司子公司","子公司工程管理中心技术员（智能化方向）",1,"1.协助推进落实公司工程建设智能化发展的相关工作部署。\n2.协助推进落实公司有关智能化工程建设项目。\n3.协助做好公司机电设备工程有关管理工作。\n4.完成公司交办的其他工作。\n","1.大学本科及以上学历，并获得相应学位证书，机械类、电气类、自动化类专业或建筑电气与智能化等相关专业。\n2.有较强的责任心、学习能力和协调能力。\n3.2024/2025年毕业生。","校园招聘","广西中马钦州产业园区"]
[25,"广西中马钦州产业园区投资控股集团有限公司子公司","子公司首席合规官",4,"1.负责组织拟定和实施子公司合规管理体系。\n2.负责参与公司重大决策并提出合规意见。\n3.负责组织开展公司合规管理工作。\n4.负责向公司董事会和总经理汇报合规管理重大事项。\n5.完成公司交办的其他工作。","1.大学本科及以上学历，并获得相应学位证书，法学类相关专业优先。\n2.具有累计5年以上在机关事业单位、企业、国有资产监督管理领域相关等法律事务工作经历，负责过工作单位的法律事务，或主持过某重要项目的法律事务；具有较强的具备较强的合规管理、合规风险应对能力；具有良好的职业道德操守。\n3.现任职务职级一般应相当省级直属企业所属子企业部门正职(非国有企业的以同类型同规模企业为参考）或机关事业单位中的现任正科级干部，或者在企业部门副职（副科级）岗位工作2年以上（未满2年的，一般应当在部门副职层级岗位及下一层级正职岗位工作累计5年以上，且须担任部门副职满1年）。\n4.有较强的责任心、学习能力和协调能力。\n5.持有A类法律职业资格证书。\n6.年龄40周岁及以下（计算时间截至公告发布日）。  \n","社会招聘","广西中马钦州产业园区"]
[26,"广西中马钦州产业园区投资控股集团有限公司子公司","子公司\n风控合规岗",4,"1.负责具体实施公司合规管理体系。\n2.具体提出重大经营决策事项合规意见。\n3.具体落实公司合规管理日常工作。\n4.完成公司交办的其他工作。","1.大学本科及以上学历，并获得相应学位证书，法学类相关专业。\n2.熟悉民商法、公司法、民事诉讼法、国际法等相关知识。\n3.有较强的责任心、学习能力和适应能力。\n4.持有A类法律职业资格证书。\n5.2024/2025年毕业生。","校园招聘","广西中马钦州产业园区"]
[27,"广西中马钦州产业园区投资控股集团有限公司子公司","子公司财务部副经理",1,"1.协助部门负责人组织公司日常会计核算、纳税申报、财务报表编制、管理会计和会计档案保管工作。\n2.协助部门负责人负责根据公司经营情况进行融资需求分析，制定和实施融资计划，拓展融资渠道。\n3.协助部门负责人制定公司资金管理内部控制的规章制度和流程，并监督执行；组织编制公司资金计划并汇总，组织评审及监督执行。\n4.协助对公司所属企业资金活动进行有效管理。\n5.完成公司交办的其他工作。","1.大学本科及以上学历，并获得相应学位证书，会计学、财务管理等相关专业。\n2.具有5年以上机关事业单位、国有企业、大型私营企业财务管理相关工作经验，熟悉财务管理和税务管理工作。\n3.现任职务职级一般应相当企业部门副职(国有企业的以省级、自治区级所属二级企业为参考，非国有企业的以同类型同规模企业为参考）或党政机关、事业单位中的现任副科级干部，或者在相关岗位工作5年以上。\n4.有较强的责任心、学习能力和协调能力。\n5.中级会计师及以上职称，或者为注册会计师；\n6.年龄40周岁及以下（计算时间截至公告发布日）。","社会招聘","广西中马钦州产业园区"]
[28,"广西中马钦州产业园区投资控股集团有限公司子公司","子公司财务岗",2,"1.负责日常会计核算、固定资产核算、财务处理或者收付款、现金管理、票据管理等工作。\n2.完成公司交办的其它工作。","1.大学本科及以上学历，并获得相应学位证书，会计学、财务管理等相关专业。\n2.具有2年以上机关事业单位、国有企业、大型私营企业财务管理相关工作经验。\n3.有较强的责任心、学习能力和适应能力。","社会招聘","广西中马钦州产业园区"]
[29,"广西中马钦州产业园区投资控股集团有限公司子公司","子公司财务岗",2,"1.负责子公司日常会计核算、固定资产核算、财务处理或者收付款、现金管理、票据管理等工作。\n2.完成公司交办的其它工作。","1.大学本科及以上学历，并获得相应学位证书，会计学、财务管理等相关专业。\n2.有较强的责任心、学习能力和适应能力。\n3.2024/2025年毕业生。","校园招聘","广西中马钦州产业园区"]
[30,"广西中马钦州产业园区投资控股集团有限公司子公司","子公司客户服务中心经理/副经理",1,"1.负责组织受理和响应客户诉求，改进客服流程和提升服务质量，提升客户满意度。\n2.负责对客户服务和售后数据进行统计分析，提出优化服务的方案。\n3.协同做好物业租赁相关工作。\n4.完成公司交办的其他工作。","1.大学本科及以上学历，并获得相应学位证书，专业不限。\n2.具有5年以上同等岗位或客户服务、物业管理工作经验；熟悉基本物业知识、客服管理知识、物业法律法规。\n3.应聘经理岗位的现任职务职级一般应相当省级直属企业所属子企业部门正职(非国有企业的以同类型同规模企业为参考）或机关事业单位中的现任正科级干部，或者在企业部门副职（副科级）岗位工作2年以上（未满2年的，一般应当在部门副职层级岗位及下一层级正职岗位工作累计5年以上，且须担任部门副职岗位满1年）；应聘副经理岗位的现任职务职级一般应相当省级直属企业所属子企业部门副职(非国有企业的以同类型同规模企业为参考）或党政机关、事业单位中的现任副科级干部，或者在相关岗位工作5年以上。\n4.有较强的责任心、学习能力和协调能力。\n5.年龄40周岁及以下（计算时间截至公告发布日）。","社会招聘","广西中马钦州产业园区"]
[31,"广西中马钦州产业园区投资控股集团有限公司子公司","子公司市场部\n信息化运维岗",1,"1.负责企业ERP系统日常运维，统筹数据中心运维管理，确保网络安全、信息安全。\n2.数据中心算力资源开发。\n3.完成公司交办的其他工作。","1.大学本科及以上学历，并获得相应学位证书，计算机类相关专业。\n2.有较强的责任心、学习能力和适应能力。\n3.2024/2025年毕业生。","校园招聘","广西中马钦州产业园区"]
[32,"广西中马钦州产业园区投资控股集团有限公司子公司","子公司综合管理岗",3,"1.负责具体落实综合管理、综合保障工作。\n2.完成公司交办的其它工作。","1.大学本科及以上学历，并获得相应学位证书，马克思主义理论、哲学、历史学、政治学与行政学、汉语言文学、新闻学等相关专业。\n2.有较强的责任心、学习能力和适应能力。\n3.2024/2025年毕业生。","校园招聘","广西中马钦州产业园区"]
["合计",null,null,{"$f":"SUM(D3:D34)","v":42}]

{"sheet":"2025年招聘岗位及条件表","index":2,"n_rows":35,"n_cols":8,"rows_kept":35,"hidden":true,"merged":[[0,0,0,7],[34,0,34,2]]}
["广西中马钦州产业园区投资控股集团有限公司2025年招聘岗位及条件表"]
["序号","用人\n单位","岗位\n名称","需招聘人数（人）","岗位主要职责","任职条件","招聘类型","工作地点"]
[{"$f":"ROW()-2","v":1},"广西中马钦州产业园区投资控股集团有限公司","数字化与人工智能办公室副主任（集团公司中层副职）",1,"1.负责组织制定集团公司数字化与人工智能工作规划、计划和有关管理制度。\n2.负责组织和指导子公司开展数字化与人工智能各项工作。\n3.负责统筹各项运营数据管理。\n4.组织挖掘业务场景需求，推动数字化与人工智能技术落地应用。\n5.完成公司交办的其他工作。","1.大学本科及以上学历，并获得相应学位证书，计算机科学与技术、数据科学、人工智能等相关专业。\n2.具有8年以上数智化与人工智能工作经历，熟练掌握至少一种编程语言，如Python、C++或Java，并具备良好的编程习惯和代码阅读能力，具有扎实的算法基础，熟悉常用的数据结构和算法，能够优化模型性能并解决实际问题。\n3.现任职务职级一般应相当于机关事业单位中的现任副处级干部或相当于省级直属企业(非国有企业的以同类型同规模企业为参考)中层副职干部；或在下一层级正职(正科级)岗位工作3年以上,未满3年的一般应当在下一层级正职(正科级)岗位和副职(副科级)岗位工作累计5年以上且须担任部门副职岗位满1年。\n4.有较强的责任心、学习能力和协调能力。\n5.40周岁及以下（计算时间截至公告发布日）。  ","社会招聘","广西中马钦州产业园区"]
[{"$f":"ROW()-2","v":2},"广西中马钦州产业园区投资控股集团有限公司","资金管理中心副主任（集团公司中层副职）",1,"1.负责具体组织拟定并实施集团公司年度、季度和月度资金计划，定期对执行情况进行分析和报告。\n2.负责具体组织拟定和推进落实集团公司筹融资管理工作计划，及时报告执行情况和提出建议。\n3.负责组织对资金计算情况进行监督和检查。\n4.负责做好外部关系协调。\n5.落实集团公司安排的其他工作。","1.大学本科及以上学历，并获得相应学位证书，会计学、财务管理或金融学类专业。\n2.具有5年以上金融机构公司业务管理或企业投融资等工作经验。\n3.在较大规模企业担任过资金管理负责人（分管财务副总经理、财务总监、财务部门负责人）,现任职务职级一般应相当于机关事业单位中的现任副处级干部或相当于省级直属企业(非国有企业的以同类型同规模企业为参考)中层副职干部；或在下一层级正职(正科级)岗位工作3年以上,未满3年的一般应当在下一层级正职(正科级)岗位和副职(副科级)岗位工作累计5年以上。\n4.有较强的责任心、学习能力和协调能力。\n5.中级会计师及以上职称，或者为注册会计师。\n6.40周岁及以下（计算时间截至公告发布日）。 ","社会招聘","广西中马钦州产业园区"]
[{"$f":"ROW()-2","v":3},"广西中马钦州产业园区投资控股集团有限公司","数字化与人工智能岗",1,"1.负责具体组织数字化与人工智能项目的申报、变更、评审、监督及验收评估等工作；协同推进数智化产城综合服务平台等项目建设，动态跟踪重点项目的进度、质量和风险。\n2.协助部门负责人挖掘业务场景需求，推动数字化与人工智能技术落地应用。\n3.协助部门负责人组织建立数据资产目录，完善数据采集、存储、共享及开放机制；监控数据质量，推动业务与数字技术融合的流程优化。\n4.完成公司交办的其他工作任务。","1.大学本科及以上学历，并获得相应学位证书，计算机科学与技术、数据科学、人工智能等相关专业。\n2.有较强的责任心、学习能力。\n3.2024/2025年毕业生。","校园招聘","广西中马钦州产业园区"]
[{"$f":"ROW()-2","v":4},"广西中马钦州产业园区投资控股集团有限公司子公司","投资部\n经理/副经理",1,"1.负责推进落实公司投资计划，并提出工作建议。\n2.负责具体组织实施项目投资各项工作，并做好风险管理。\n3.负责组织开展市场和行业调研，拓展和储备投资项目。\n4.负责拟定和组织实施公司投资业务管理制度。\n5.完成公司交办的其它工作。","1.大学本科及以上学历，并获得相应学位证书。\n2.具有5年及以上企业投资管理经验。\n3.应聘经理岗位的现任职务职级一般应相当省级直属企业所属子企业部门正职(非国有企业的以同类型同规模企业为参考）或机关事业单位中的现任正科级干部，或者在企业部门副职（副科级）岗位工作2年以上（未满2年的，一般应当在部门副职层级岗位及下一层级正职岗位工作累计5年以上，且须担任部门副职岗位满1年）；应聘副经理岗位的现任职务职级一般应相当省级直属企业所属子企业部门副职(非国有企业的以同类型同规模企业为参考）或党政机关、事业单位中的现任副科级干部，或者在相关岗位工作5年以上。\n4.有较强的责任心、学习能力和协调能力。\n5.35周岁及以下（计算时间截至公告发布日）。\n6.有投行工作经验或有化工、生物医药、食品工业、新材料等行业投资工作经验优先。","社会招聘","广西中马钦州产业园区"]
[{"$f":"ROW()-2","v":5},"广西中马钦州产业园区投资控股集团有限公司子公司","投资部\n投资策划岗",1,"1.按要求做好投资方分析及研究。\n2.对新项目进行背景调查，编制立项建议书及项目投资分析报告，参与商务谈判相关工作。\n3.负责投资项目运营前的其他推进工作。\n4.完成公司交办的其他工作。","1.大学本科及以上学历，并获得相应学位证书，经济学、金融学、财务等相关专业。\n2.有2年及以上投资策划经验。\n3.有较强的责任心、学习能力和协调能力。\n4.年龄30周岁及以下（计算时间截至公告发布日）。\n5.有化工、食品工业、生物医药行业或投行工作经验优先。","社会招聘","广西中马钦州产业园区"]
[{"$f":"ROW()-2","v":6},"广西中马钦州产业园区投资控股集团有限公司子公司","经营业务岗（化工方向）",1,"1.协助开展化工行业调研和政策分析。\n2.协助推进落实化工类项目分析和运营管理工作。\n3.协助推进投资项目运营前有关工作。\n4.完成公司交办的其他工作。","1.大学本科及以上学历，并获得相应学位证书，化学、化学工程与工艺、精细化工等相关专业。\n2.有较强的责任心、学习能力和适应能力。\n3.2024/2025年毕业生。","校园招聘","广西中马钦州产业园区"]
[{"$f":"ROW()-2","v":7},"广西中马钦州产业园区投资控股集团有限公司子公司","经营业务岗（自动化方向）",1,"1.负责推进落实公司自动化项目相关工作。\n2.负责拟定自动化有关专项方案并推进实施。\n3.完成公司交办的其他工作。","1.大学本科及以上学历，并获得相应学位证书，自动化相关专业。\n2.有2年及以上自动化领域相关工作经验。\n3.有较强的责任心、学习能力和适应能力。\n4.35周岁及以下（计算时间截至公告发布日）。","社会招聘","广西中马钦州产业园区"]
[{"$f":"ROW()-2","v":8},"广西中马钦州产业园区投资控股集团有限公司子公司","科创部经理/\n副经理",1,"1.负责具体组织实施科技孵化类项目管理工作。\n2.参与技术引进与评估相关工作。\n3.负责落实中试基地建设和运营管理等有关工作安排。\n4.负责组织落实科技孵化类项目产权管理相关工作。\n5.完成公司交办的其他工作。","1.大学本科及以上学历，并获得相应学位证书，理工类相关专业毕业，食品科学与工程类、化工与制药类、生物工程类优先。\n2.具有3年以上企业科技创新相关工作经验。\n3.应聘经理岗位的现任职务职级一般应相当省级直属企业所属子企业部门正职(非国有企业的以同类型同规模企业为参考）或机关事业单位中的现任正科级干部，或者在企业部门副职（副科级）岗位工作2年以上（未满2年的，一般应当在部门副职层级岗位及下一层级正职岗位工作累计5年以上，且须担任部门副职岗位满1年）；应聘副经理岗位的现任职务职级一般应相当省级直属企业所属子企业部门副职(非国有企业的以同类型同规模企业为参考）或党政机关、事业单位中的现任副科级干部，或者在相关岗位工作5年以上。\n4.有较强的责任心、学习能力和协调能力。\n5.年龄40周岁及以下（计算时间截至公告发布日）。\n6.中级及以上职称，有科技成果转化项目主导或投行经验优先。\n","社会招聘","广西中马钦州产业园区"]
[{"$f":"ROW()-2","v":9},"广西中马钦州产业园区投资控股集团有限公司子公司","运营管理岗",1,"1.负责具体开展海外市场调研及政策研究。\n2.负责具体拓展海外业务和推进落实海外招商引资工作。\n3.完成公司交办的其它工作。","1.大学本科及以上学历，并获得相应学位证书，经济与贸易类、金融学类专业。\n2.具有2年及以上国际经贸相关工作或者海外工作经验。\n3.通过CET-6/TEM-8考试，或雅思考试6分、托福考试80分及以上分数。\n4.有较强的责任心、学习能力和适应能力。\n5.30周岁及以下（计算时间截至公告发布日）。 \n","社会招聘","马来西亚"]
[{"$f":"ROW()-2","v":10},"广西中马钦州产业园区投资控股集团有限公司子公司","投行经理/副经理",1,"1.负责组织开展行业跟踪和研究，制定项目投资计划。\n2.负责组织拓展、储备投资项目。\n3.负责组织制定实施项目投资方案，并开展项目投后管理。\n4.组织制定实施业务管理制度。\n5.负责维护和拓展合作机构伙伴。\n6..完成公司交办的其他工作。","1.大学本科及以上学历，并获得相应学位证书，经济学、金融学、工商管理专业。\n2.具有5年及以上投行工作经验。\n3.应聘经理岗位的现任职务职级一般应相当省级直属企业所属子企业部门正职(非国有企业的以同类型同规模企业为参考）或机关事业单位中的现任正科级干部，或者在企业部门副职（副科级）岗位工作2年以上（未满2年的，一般应当在部门副职层级岗位及下一层级正职岗位工作累计5年以上，且须担任部门副职岗位满1年）；应聘副经理岗位的现任职务职级一般应相当省级直属企业所属子企业部门副职(非国有企业的以同类型同规模企业为参考）或党政机关、事业单位中的现任副科级干部，或者在相关岗位工作3年以上。\n4.有较强的责任心、学习能力和协调能力。\n5.40周岁及以下（计算时间截至公告发布日）。\n6.具有基金从业资格证书或主持过项目投资优先。 ","社会招聘","广西中马钦州产业园区"]
[{"$f":"ROW()-2","v":11},"广西中马钦州产业园区投资控股集团有限公司子公司","投资管理岗",1,"1.负责具体开展项目投资管理相关工作。\n2.负责协助完善投资管理相关工作制度、流程。\n3.3.协助已投企业规范性经营，监控被投企业的财务和运营风险，及时发现潜在问题并制定应对方案。\n4.完成公司交办的其他工作。","1.大学本科及以上学历，并获得相应学位证书，金融学类、经济学类等相关专业。\n2.具有3年及以上项目投资管理工作经验。\n3.有较强的责任心、学习能力和协调能力。\n4.年龄35周岁及以下（计算时间截至公告发布日）。\n5.具有投行工作经验优先。","社会招聘","广西中马钦州产业园区"]
[{"$f":"ROW()-2","v":12},"广西中马钦州产业园区投资控股集团有限公司子公司","供应链金融主管",1,"1.负责具体设计供应链金融产品方案，有效响应客户需求。\n2.负责参与和落实供应链业务全周期管理，开展贸易背景真实性核查、资金流闭环监控及信用风险评估。\n3.定期开展有关经营数据分析，提供业务经营建议。\n4.完成公司交办的其他工作。","1.大学本科及以上学历，并获得相应学位证书，会计学、财务管理、供应链管理和金融学类相关专业。\n2.具有3年以上供应链金融工作经验；\n3.有较强的责任心、学习能力和适应能力。\n4.年龄35周岁及以下（计算时间截至公告发布日）。\n","社会招聘","广西中马钦州产业园区"]
[{"$f":"ROW()-2","v":13},"广西中马钦州产业园区投资控股集团有限公司子公司","供应链金融岗",1,"1.协助设计供应链金融产品方案，有效响应客户需求。\n2.协助落实供应链业务全周期管理，协助开展贸易背景真实性核查、资金流闭环监控及信用风险评估。\n3.协助定期开展有关经营数据分析。\n4.完成公司交办的其他工作。","1.大学本科及以上学历，并获得相应学位证书，会计学、财务管理、供应链管理和金融学类相关专业\n2.有较强的责任心、学习能力和适应能力。\n3.2024/2025年毕业生。","校园招聘","广西中马钦州产业园区"]
[{"$f":"ROW()-2","v":14},"广西中马钦州产业园区投资控股集团有限公司子公司","冷链管理部\n经理",1,"1.负责组织落实公司冷链业务发展规划、计划。\n2.负责组织拓展冷链业务，完成公司下达的冷库招商招租和运营管理经营计划。\n3.拟定和组织实施冷链业务管理制度。\n4.完成公司交办的其它工作。","1.大学本科及以上学历，并获得相应学位证书，经济与贸易类、工商管理类、物流管理与工程类等相关专业。\n2.具有5年及以上供应链业务、冷链管理、仓储物流等相关工作经历，熟知国内外冷链物流市场发展动态、趋势、营运管理。\n3.现任职务职级一般应相当省级直属企业所属子企业部门正职(非国有企业的以同类型同规模企业为参考）或机关事业单位中的现任正科级干部，或者在企业部门副职（副科级）岗位工作2年以上（未满2年的，一般应当在部门副职层级岗位及下一层级岗位工作累计5年以上，且须担任部门副职岗位满1年）。\n4.有较强的责任心、学习能力和协调能力。\n5.35周岁及以下（计算时间截至公告发布日）。  ","社会招聘","广西中马钦州产业园区"]
[{"$f":"ROW()-2","v":15},"广西中马钦州产业园区投资控股集团有限公司子公司","贸易主管",1,"1.完成部门布置任务目标，做好合同签订、履约以及货款的结算、回笼等工作。\n2.负责客户的开拓、管理和维护，完成市场开发各项工作任务。\n3.完成公司交办的其它工作。","1.大学本科及以上学历，并获得相应学位证书，经济与贸易类、金融学类专业。\n2.具有2年以上贸易工作经验（需从事过国际贸易），能独立开展国际贸易相关业务。\n3.通过CET-6/TEM-8考试，或雅思考试6分、托福考试80分及以上分数。\n4.有较强的责任心、学习能力和适应能力。\n5.30周岁及以下（计算时间截至公告发布日）。  ","社会招聘","广西中马钦州产业园区"]
[{"$f":"ROW()-2","v":16},"广西中马钦州产业园区投资控股集团有限公司子公司","贸易岗",1,"1.完成部门布置的月、季、年度市场任务目标，做好合同签订、履约以及货款的结算、回笼等工作。\n2.负责客户开拓、管理和维护，完成市场开发各项工作任务。\n3.完成公司交办的其它工作。","1.大学本科及以上学历，并获得相应学位证书，经济与贸易类、金融学类。\n2.通过CET-6/TEM-8考试，或雅思考试6分、托福考试80分及以上分数。\n3.有较强的责任心、学习能力和适应能力。\n4.2024/2025年毕业生。\n","校园招聘","广西中马钦州产业园区"]
[{"$f":"ROW()-2","v":17},"广西中马钦州产业园区投资控股集团有限公司子公司","产业合作部\n业务副总监",1,"1.协助业务总监负责部门的日常管理工作，开展产业投资、招商活动的策划、组织、实施和管理，监督、指导业务经理开展产业投资及招商工作。                                                                                           2.协助负责招商项目的挖掘、洽谈、分类和推动落地，通过外部以商招商、市场化招商、产业链招商等模式对招商信息筛选、洽谈推动落地。                                                                                         3.负责对接外部商协会和入园企业产业链收集相关招商资讯和资源，组织和策划目标明确、专业度高、精准高效的开展招商推介。                                                                                              4.负责对接各级政府招商部门，参加和组织项目配合相关专场招商活动。\n5.完成公司交办的其他工作。","1.大学本科及以上学历，并获得相应学位证书，食品科学与工程类、化工与制药类、材料类、生物医药数据科学专业优先。                                                                                     \n2.具有5年及以上招商、营销或园区管理工作经历，负责过本单位招商营销工作，或主持过企业项目招商或营销活动，掌握招商、招租管理或市场营销策划等相关知识和工作流程。\n3.现任职务职级一般应相当省级直属企业所属子企业部门副职(非国有企业的以同类型同规模企业为参考）或机关事业单位中的现任副科级干部，或者在下一层级相关岗位工作5年以上。 \n4.有较强的责任心、学习能力和协调能力。                                                                       5.40周岁及以下（计算时间截至公告发布日）。   ","社会招聘","广西中马钦州产业园区"]
[{"$f":"ROW()-2","v":18},"广西中马钦州产业园区投资控股集团有限公司子公司","产业合作部\n产业招商经理",1,"1.负责为客户提供招商服务，做好客户关系维护。                                                                              2.负责落实招商签约具体工作。\n3.协助组织开展招商活动，参与商务谈判和内外招商，协同保障招商项目落地。                                \n4.负责招商市场调研工作及招商推广的组织实施，协助部门组织和策划招商推介活动，对接各级政府招商部门，积极参加配合相关专场招商活动。\n5.完成公司交办的其他工作。","1.大学本科及以上学历，并获得相应学位证书，市场营销、设计学类相关专业。\n2.有较强的责任心、学习能力。\n3.2024/2025年毕业生。","校园招聘","广西中马钦州产业园区"]
[{"$f":"ROW()-2","v":19},"广西中马钦州产业园区投资控股集团有限公司子公司","策划保障部\n产业和政策研究岗",1,"1.协助做好项目落地要素分析，做好落地服务协调、保障工作和协助拓展新项目。                                                                                                 2.协助收集、整理和分析各级、各地产业和招商政策。                                                                                                  3.协助制定招商合作活动策划方案。\n4.完成公司交办的其他工作。","1.大学本科及以上学历，并获得相应学位证书，市场营销、设计类相关专业。\n2.有较强的责任心、学习能力。\n3.2024/2025年毕业生。","校园招聘","广西中马钦州产业园区"]
[{"$f":"ROW()-2","v":20},"广西中马钦州产业园区投资控股集团有限公司子公司","市场部\n项目管理岗",1,"1.协助开展市场调研和分析工作。\n2.参与制定和具体实施项目开发策划方案、项目投资方案等。\n3.按照要求跟进项目进展情况。\n4.完成公司交办的其他工作。","1.大学本科及以上学历，并获得相应学位证书，经济学、市场营销等相关专业。\n2.有较强的责任心、学习能力和适应能力。\n3.2024/2025年毕业生。","校园招聘","广西中马钦州产业园区"]
[{"$f":"ROW()-2","v":21},"广西中马钦州产业园区投资控股集团有限公司子公司","工程管理中心项目经理（化工类项目建设方向）",1,"1.负责组织实施公司安排的工程建设项目的管理，及时对项目的经营管理提出建议。\n2.负责相应工程建设项目施工现场的技术指导。 \n3.负责协调项目部相关各方工作。\n4.负责监督检查相应工程建设项目施工进度、质量达标以及成本控制情况。\n5.完成公司交办的其它工作。","1.大学本科及以上学历，并获得相应学位证书，化学工程、工业与民用建筑等相关专业。\n2.具有5年以上工程建设施工单位项目管理工作经验（其中有2年以上化工项目现场管理经验），熟悉工程建设项目组织实施流程，能独立编制施工组织设计。\n3.有较强的责任心、学习能力和协调能力。\n4.具有工程系列中级及以上职称。\n5.年龄40周岁及以下（计算时间截至公告发布日）。\n","社会招聘","广西中马钦州产业园区"]
[{"$f":"ROW()-2","v":22},"广西中马钦州产业园区投资控股集团有限公司子公司","工程管理中心工程师（智能化方向）",1,"1.负责具体组织推进落实公司工程建设智能化发展的相关工作部署。\n2.负责具体统筹组织实施公司有关智能化工程建设项目。\n3.负责组织落实公司机电设备工程有关管理工作。\n4.完成公司交办的其他工作。\n","1.大学本科及以上学历，并获得相应学位证书，机械类、电气类、自动化类专业或建筑电气与智能化、通信工程等相关专业。\n2.具有5年以上工程建设施工单位数字化与智能化相关工作经验或机电设备工程管理经验。\n3.有较强的责任心、学习能力和协调能力。\n4.具有工程系列中级及以上职称。\n5.年龄35周岁及以下（计算时间截至公告发布日）。 ","社会招聘","广西中马钦州产业园区"]
[{"$f":"ROW()-2","v":23},"广西中马钦州产业园区投资控股集团有限公司子公司","工程管理中心施工技术员",1,"1.协助编制和组织实施项目施工计划，落实项目施工具体工作。\n2.协助对项目施工质量、进度、安全等进行管理、检查和督促。\n3.协助做好项目各类申报管理工作。 \n4.完成公司交办的其它工作。","1.大学本科及以上学历，并获得相应学位证书，化学工程、工业与民用建筑等相关专业。\n2.具有2年以上工程建设施工单位施工经验，能较为独立地组织开展建设工程施工工作。\n3.有较强的责任心、学习能力和协调能力。\n4.年龄40周岁及以下（计算时间截至公告发布日）。\n5.具有化工项目施工经验者优先。","社会招聘","广西中马钦州产业园区"]
[{"$f":"ROW()-2","v":24},"广西中马钦州产业园区投资控股集团有限公司子公司","工程管理中心技术员（智能化方向）",1,"1.协助推进落实公司工程建设智能化发展的相关工作部署。\n2.协助推进落实公司有关智能化工程建设项目。\n3.协助做好公司机电设备工程有关管理工作。\n4.完成公司交办的其他工作。\n","1.大学本科及以上学历，并获得相应学位证书，机械类、电气类、自动化类专业或建筑电气与智能化等相关专业。\n2.有较强的责任心、学习能力和协调能力。\n3.2024/2025年毕业生。","校园招聘","广西中马钦州产业园区"]
[{"$f":"ROW()-2","v":25},"广西中马钦州产业园区投资控股集团有限公司子公司","子公司首席合规官",4,"1.负责组织拟定和实施子公司合规管理体系。\n2.负责参与公司重大决策并提出合规意见。\n3.负责组织开展公司合规管理工作。\n4.负责向公司董事会和总经理汇报合规管理重大事项。\n5.完成公司交办的其他工作。","1.大学本科及以上学历，并获得相应学位证书，法学类相关专业优先。\n2.具有累计5年以上在机关事业单位、企业、国有资产监督管理领域相关等法律事务工作经历，负责过工作单位的法律事务，或主持过某重要项目的法律事务；具有较强的具备较强的合规管理、合规风险应对能力；具有良好的职业道德操守。\n3.现任职务职级一般应相当省级直属企业所属子企业部门正职(非国有企业的以同类型同规模企业为参考）或机关事业单位中的现任正科级干部，或者在企业部门副职（副科级）岗位工作2年以上（未满2年的，一般应当在部门副职层级岗位及下一层级正职岗位工作累计5年以上，且须担任部门副职满1年）。\n4.有较强的责任心、学习能力和协调能力。\n5.持有A类法律职业资格证书。\n6.年龄40周岁及以下（计算时间截至公告发布日）。  \n","社会招聘","广西中马钦州产业园区"]
[26,"广西中马钦州产业园区投资控股集团有限公司子公司","子公司\n风控合规岗",4,"1.负责具体实施公司合规管理体系。\n2.具体提出重大经营决策事项合规意见。\n3.具体落实公司合规管理日常工作。\n4.完成公司交办的其他工作。","1.大学本科及以上学历，并获得相应学位证书，法学类相关专业。\n2.熟悉民商法、公司法、民事诉讼法、国际法等相关知识。\n3.有较强的责任心、学习能力和适应能力。\n4.持有A类法律职业资格证书。\n5.2024/2025年毕业生。","校园招聘","广西中马钦州产业园区"]
[27,"广西中马钦州产业园区投资控股集团有限公司子公司","子公司财务部副经理",1,"1.协助部门负责人组织公司日常会计核算、纳税申报、财务报表编制、管理会计和会计档案保管工作。\n2.协助部门负责人负责根据公司经营情况进行融资需求分析，制定和实施融资计划，拓展融资渠道。\n3.协助部门负责人制定公司资金管理内部控制的规章制度和流程，并监督执行；组织编制公司资金计划并汇总，组织评审及监督执行。\n4.协助对公司所属企业资金活动进行有效管理。\n5.完成公司交办的其他工作。","1.大学本科及以上学历，并获得相应学位证书，会计学、财务管理等相关专业。\n2.具有5年以上机关事业单位、国有企业、大型私营企业财务管理相关工作经验，熟悉财务管理和税务管理工作。\n3.现任职务职级一般应相当企业部门副职(国有企业的以省级、自治区级所属二级企业为参考，非国有企业的以同类型同规模企业为参考）或党政机关、事业单位中的现任副科级干部，或者在相关岗位工作5年以上。\n4.有较强的责任心、学习能力和协调能力。\n5.中级会计师及以上职称，或者为注册会计师；\n6.年龄40周岁及以下（计算时间截至公告发布日）。","社会招聘","广西中马钦州产业园区"]
[28,"广西中马钦州产业园区投资控股集团有限公司子公司","子公司财务岗",2,"1.负责日常会计核算、固定资产核算、财务处理或者收付款、现金管理、票据管理等工作。\n2.完成公司交办的其它工作。","1.大学本科及以上学历，并获得相应学位证书，会计学、财务管理等相关专业。\n2.具有2年以上机关事业单位、国有企业、大型私营企业财务管理相关工作经验。\n3.有较强的责任心、学习能力和适应能力。","社会招聘","广西中马钦州产业园区"]
[29,"广西中马钦州产业园区投资控股集团有限公司子公司","子公司财务岗",2,"1.负责子公司日常会计核算、固定资产核算、财务处理或者收付款、现金管理、票据管理等工作。\n2.完成公司交办的其它工作。","1.大学本科及以上学历，并获得相应学位证书，会计学、财务管理等相关专业。\n2.有较强的责任心、学习能力和适应能力。\n3.2024/2025年毕业生。","校园招聘","广西中马钦州产业园区"]
[30,"广西中马钦州产业园区投资控股集团有限公司子公司","客户服务中心经理/副经理",1,"1.负责组织受理和响应客户诉求，改进客服流程和提升服务质量，提升客户满意度。\n2.负责对客户服务和售后数据进行统计分析，提出优化服务的方案。\n3.协同做好物业租赁相关工作。\n4.完成公司交办的其他工作。","1.大学本科及以上学历，并获得相应学位证书，专业不限。\n2.具有5年以上同等岗位或客户服务、物业管理工作经验；熟悉基本物业知识、客服管理知识、物业法律法规。\n3.应聘经理岗位的现任职务职级一般应相当省级直属企业所属子企业部门正职(非国有企业的以同类型同规模企业为参考）或机关事业单位中的现任正科级干部，或者在企业部门副职（副科级）岗位工作2年以上（未满2年的，一般应当在部门副职层级岗位及下一层级正职岗位工作累计5年以上，且须担任部门副职岗位满1年）；应聘副经理岗位的现任职务职级一般应相当省级直属企业所属子企业部门副职(非国有企业的以同类型同规模企业为参考）或党政机关、事业单位中的现任副科级干部，或者在相关岗位工作5年以上。\n4.有较强的责任心、学习能力和协调能力。\n5.年龄40周岁及以下（计算时间截至公告发布日）。","社会招聘","广西中马钦州产业园区"]
[31,"广西中马钦州产业园区投资控股集团有限公司子公司","市场部\n信息化运维岗",1,"1.负责企业ERP系统日常运维，统筹数据中心运维管理，确保网络安全、信息安全。\n2.数据中心算力资源开发。\n3.完成公司交办的其他工作。","1.大学本科及以上学历，并获得相应学位证书，计算机类相关专业。\n2.有较强的责任心、学习能力和适应能力。\n3.2024/2025年毕业生。","校园招聘","广西中马钦州产业园区"]
[32,"广西中马钦州产业园区投资控股集团有限公司子公司","子公司综合管理岗",3,"1.负责具体落实综合管理、综合保障工作。\n2.完成公司交办的其它工作。","1.大学本科及以上学历，并获得相应学位证书，马克思主义理论、哲学、历史学、政治学与行政学、汉语言文学、新闻学等相关专业。\n2.有较强的责任心、学习能力和适应能力。\n3.2024/2025年毕业生。","校园招聘","广西中马钦州产业园区"]
["合计",null,null,{"$f":"SUM(D3:D34)","v":42}]

{"sheet":"Sheet1 (2)","index":3,"n_rows":45,"n_cols":11,"rows_kept":45,"hidden":true,"merged":[[0,0,0,10],[3,0,3,4],[6,0,6,4],[12,0,12,4],[15,0,15,4],[20,0,20,4],[22,0,22,4],[24,0,24,4],[26,0,26,4],[28,0,28,4],[30,0,30,4],[32,0,32,4],[34,0,34,4],[36,0,36,4],[38,0,38,4],[40,0,40,4],[42,0,42,4],[44,0,44,4]]}
["广西中马钦州产业园区投资控股集团有限公司2025年招聘需求表（汇总表）"]
["序号","岗位类别","用人\n单位","需求单位","岗位\n名称","岗位\n编制数","现有\n人数","需招聘人数（人）","开展招聘时间","招聘类型","备注"]
[1,"管理类","广西中马投控建设集团有限公司","建设集团","公司副总经理","/",2,1,"2025年1季度","社招","广西中马钦州产业园区"]
["小计",{"$nulls":4},"/",{"$f":"SUM(G3:G3)","v":2},{"$f":"SUM(H3:H3)","v":1}]
[2,"财务类","广西中马投控产业服务集团有限公司","产服集团","财务部\n副经理",1,0,1,"2025年1季度","社招","广西中马钦州产业园区"]
[3,"财务类","广西中马投控国际经贸集团有限公司","国贸集团","财务部\n会计岗",2,0,1,"2025年2季度","校招","广西中马钦州产业园区"]
["小计",{"$nulls":4},{"$f":"SUM(F5:F6)","v":3},{"$f":"SUM(G5:G6)","v":0},{"$f":"SUM(H5:H6)","v":2}]
[5,"风控合规类","广西中马钦州产业园区投资控股集团有限公司","集团总部","风控合规部\n风控合规岗",2,0,2,"2025年1季度","校招","广西中马钦州产业园区"]
[4,"风控合规类","广西中马投控产业投资集团有限公司","产投集团","风控合规部\n经理/副经理",1,0,1,"2025年1季度","社招","广西中马钦州产业园区"]
[6,"风控合规类","广西中马投控产业服务集团有限公司","产服集团","综合部\n风控合规岗",1,0,1,"2025年1季度","校招","广西中马钦州产业园区"]
[7,"风控合规类","广西中马投控商务服务有限公司","资本集团","\n风控合规岗",1,0,1,"2025年1季度","校招","广西中马钦州产业园区"]
[8,"风控合规类","广西中马投控资本管理集团有限公司","招商公司","\n风控合规岗",1,0,1,"2025年1季度","校招","广西中马钦州产业园区"]
["小计",{"$nulls":4},{"$f":"SUM(F8:F12)","v":6},{"$f":"SUM(G8:G12)","v":0},{"$f":"SUM(H8:H12)","v":6}]
[9,"工程管理类","广西中马投控建设集团有限公司","建设集团","工程管理中心施工管理人员（化工类）",21,13,1,"2025年1季度","社招","广西中马钦州产业园区"]
[10,"工程管理类","广西中马投控建设集团有限公司","建设集团","工程管理中心施工技术人员",21,13,1,"2025年1季度","校招","广西中马钦州产业园区"]
["小计",{"$nulls":4},21,13,2]
[11,"业务类","广西自贸区中马供应链管理有限公司","供应链公司","业务部\n业务岗",15,7,3,"2025年1季度招聘2人；2025年3季度招聘1人。","2025年1季度社招2人；2025年3季度校招1人。","广西中马钦州产业园区"]
[12,"业务类","中马双园（上海）能源科技有限公司","中马双园（上海）公司","业务部\n业务岗",4,0,1,"2025年1季度","社招","上海市"]
[null,"业务类","广西中马投控商务服务有限公司","商务公司","产业合作部\n业务副总监",3,0,1,"2025年2季度","社招"]
[13,"业务类","广西中马投控商务服务有限公司","商务公司","产业合作部\n产业招商经理",5,0,1,"2025年1季度","校招","广西中马钦州产业园区"]
["小计",{"$nulls":6},{"$f":"SUM(H17:H20)","v":6}]
[14,"审计类","广西中马投控产业服务集团有限公司","产服集团","财务部\n审计岗",1,0,1,"2025年1季度","校招","广西中马钦州产业园区"]
["小计"]
[15,"行政综合类","广西中马钦州产业园区华互立德教育投资有限公司","产服集团","教务管理岗",3,0,1,"2025年2季度","社招","广西中马钦州产业园区"]
["小计"]
[16,"党建类","广西中马投控国际经贸集团有限公司","国贸集团","党群人力部\n党群岗",1,0,1,"2025年1季度","校招","广西中马钦州产业园区"]
["小计"]
[17,"市场营销类","广西中马金谷燕生物科技有限责任公司","产投集团","市场营销部\n经理/副经理",1,0,1,"2025年1季度","社招","广西中马钦州产业园区"]
["小计"]
[18,"技术类","广西自贸区产投海洋生物科技有限公司","产投集团","生产技术岗","未定编",0,1,"2025年1季度","社招","广西中马钦州产业园区"]
["小计"]
[19,"精细化工类","广西中马投控产业投资集团有限公司","产投集团",null,"新增项目",null,1,"2025年1季度","校招","广西中马钦州产业园区"]
["小计"]
[20,"商贸物流类","广西中马投控国际经贸集团有限公司","国贸集团","冷链管理部\n经理",1,0,1,"2025年1季度","社招","广西中马钦州产业园区"]
["小计"]
[21,"生物医药类","广西中马投控产业投资集团有限公司","产投集团",null,"新增项目",null,1,"2025年1季度","校招","广西中马钦州产业园区"]
["小计"]
[22,"投资管理类","广西中马投控产业投资集团有限公司","产投集团","投资部\n经理/副经理",1,0,1,"2025年1季度","社招","广西中马钦州产业园区"]
["小计"]
[23,"新材料类","广西中马投控产业投资集团有限公司","产投集团",null,"新增项目",null,1,"2025年1季度","校招","广西中马钦州产业园区"]
["小计"]
[24,"信息类","广西中马投控产业服务集团有限公司","产服集团","市场部\n信息化运维岗",2,1,2,"2025年1季度","校招","广西中马钦州产业园区"]
["小计"]
[25,"运营管理类","广西中马投控资本管理集团有限公司","资本集团","经营业务岗",1,0,1,"2025年1季度","社招","广西中马钦州产业园区"]
["小计"]

{"sheet":"Sheet2","index":4,"n_rows":27,"n_cols":14,"rows_kept":27,"hidden":true,"merged":[[1,0,2,0],[1,1,2,1],[1,2,2,2],[1,3,1,10],[1,11,2,11],[1,12,2,12],[1,13,2,13],[4,0,5,0],[4,1,5,1],[6,0,7,0],[6,1,7,1],[8,0,9,0],[8,1,9,1],[10,0,13,0],[10,1,13,1]]}
[]
["岗位类别","小计","岗位名称","需求单位",{"$nulls":7},"招聘方式","招聘时间","备注"]
[{"$nulls":3},"总部","产服","建设","国贸","资本","产投","科创","商服务"]
["管理类",1,"建设集团副总经理",null,null,1,{"$nulls":5},"社招","1季度"]
["财务类",2,"子公司财务部副经理",null,1,{"$nulls":6},"社招","1季度"]
[null,null,"子公司财务岗",{"$nulls":3},1,{"$nulls":4},"校招","2季度"]
["风控合规类",6,"子公司风控合规部\n经理/副经理",{"$nulls":5},1,null,null,"社招","1季度"]
[null,null,"风控合规岗",2,1,null,null,1,null,null,1,"校招","1季度"]
["工程管理类",2,"子公司工程管理中心施工管理人员",null,null,1,{"$nulls":5},"社招","1季度"]
[null,null,"子公司工程管理中心施工技术人员",null,null,1,{"$nulls":5},"校招","1季度"]
["业务类",6,"子公司业务部\n业务岗",{"$nulls":3},3,{"$nulls":4},"社招2人，校招1人","1季度"]
[null,null,"子公司业务部\n业务岗",{"$nulls":3},1,{"$nulls":4},"社招","3季度"]
[null,null,"子公司产业合作部\n业务副总监",{"$nulls":7},1,"社招","1季度"]
[null,null,"子公司\n产业招商经理",{"$nulls":7},1,"校招","1季度"]
["审计类",1,"子公司审计岗",null,1,{"$nulls":6},"校招","1季度"]
["行政综合类",1,"子公司教务管理岗",null,1,{"$nulls":6},"社招","2季度"]
["党建类",1,"子公司\n党群岗",{"$nulls":3},1,{"$nulls":4},"校招","1季度"]
["市场营销类",1,"子公司市场营销部\n经理/副经理",{"$nulls":5},1,null,null,"社招","1季度"]
["商贸物流类",1,"子公司冷链管理部\n经理",{"$nulls":3},1,{"$nulls":4},"社招","1季度"]
["技术岗",1,"子公司生产技术岗",{"$nulls":5},1,null,null,"社招","1季度"]
["生物医药类",1,"子公司新增项目",{"$nulls":5},1,null,null,"校招","1季度"]
["精细化工类",1,"子公司新增项目",{"$nulls":5},1,null,null,"校招","1季度"]
["新材料类",1,"子公司新增项目",{"$nulls":5},1,null,null,"校招","1季度"]
["投资管理类",1,"子公司投资部\n经理/副经理",{"$nulls":5},1,null,null,"社招","1季度"]
["信息类",2,"子公司\n信息化运维岗",null,2,{"$nulls":6},"校招","1季度"]
["运营管理类",1,"子公司经营业务岗",{"$nulls":4},1,{"$nulls":3},"社招","1季度"]
[null,{"$f":"SUM(B4:B26)","v":30},null,{"$f":"SUM(D4:D26)","v":2},{"$f":"SUM(E4:E26)","v":6},3,7,2,7,0,3]

{"sheet":"按类别分 (2)","index":5,"n_rows":30,"n_cols":12,"rows_kept":30,"hidden":true,"merged":[[0,0,0,11],[1,0,2,0],[1,1,2,1],[1,2,2,2],[1,3,1,10],[1,11,2,11],[4,0,6,0],[4,1,6,1],[7,0,8,0],[7,1,8,1],[9,0,19,0],[9,1,19,1],[20,0,28,0],[20,1,28,1]]}
["2025年招聘需求汇总表"]
["岗位类别","小计","岗位名称","需求单位",{"$nulls":7},"招聘方式"]
[{"$nulls":3},"总部（人）","产服（人）","建设（人）","国贸（人）","资本（人）","产投（人）","科创（人）","商服（人）"]
["管理类",1,"总法律顾问（首席合规官）",1,{"$nulls":7},"社招"]
["城市建设开发运营类",4,"子公司工程管理中心施工管理人员",null,null,1,{"$nulls":5},"社招"]
[null,null,"子公司工程管理中心施工技术人员",null,null,1,{"$nulls":5},"校招"]
[null,null,"子公司工程管理中心施工技术人员",null,null,2,{"$nulls":5},"社招"]
["商贸物流及供应链服务类",5,"子公司业务部\n业务岗",{"$nulls":3},4,{"$nulls":4},"社招3人，校招1人"]
[null,null,"子公司冷链管理部\n经理",{"$nulls":3},1,{"$nulls":4},"社招"]
["向海产业投资发展类",11,"子公司投资部\n经理/副经理",{"$nulls":5},1,null,null,"社招"]
[null,null,"子公司投资部\n投资策划岗",{"$nulls":5},1,null,null,"社招"]
[null,null,"子公司经营业务岗",{"$nulls":5},1,null,null,"校招"]
[null,null,"子公司经营业务岗",{"$nulls":4},1,{"$nulls":3},"社招"]
[null,null,"子公司供应链金融岗",{"$nulls":4},1,{"$nulls":3},"社招"]
[null,null,"子公司科创部经理/副经理",{"$nulls":5},1,null,null,"社招"]
[null,null,"子公司市场部\n市场管理岗",null,1,{"$nulls":6},"校招"]
[null,null,"子公司市场部\n项目管理岗",null,1,{"$nulls":6},"校招"]
[null,null,"子公司产业合作部\n业务副总监",{"$nulls":7},1,"社招"]
[null,null,"子公司\n产业招商经理",{"$nulls":7},1,"校招"]
[null,null,"子公司策划保障部\n产业和政策研究岗",{"$nulls":7},1,"社招"]
["综合保障类",14,"集团总部风控合规岗",2,{"$nulls":7},"社招"]
[null,null,"子公司首席合规官",null,1,null,1,null,1,null,null,"社招"]
[null,null,"子公司风控合规岗",null,1,1,{"$nulls":5},"校招"]
[null,null,"子公司投后管理岗",{"$nulls":4},1,{"$nulls":3},"社招"]
[null,null,"子公司财务部副经理",null,1,{"$nulls":6},"社招"]
[null,null,"子公司财务岗",{"$nulls":3},1,{"$nulls":4},"校招"]
[null,null,"子公司客户服务中心经理/副经理",null,1,{"$nulls":6},"校招"]
[null,null,"子公司\n信息化运维岗",null,2,{"$nulls":6},"校招"]
[null,null,"子公司\n党群岗",{"$nulls":3},1,{"$nulls":4},"校招"]
[null,{"$f":"SUM(B4:B29)","v":35},null,3,8,5,8,3,5,0,3]